bitfinex/quotes_BTCUSD_20241025
["timestamp","ask_amount","ask_price","bid_price","bid_amount"]
[1729898662835,0.35967676,65631.0,65627.0,0.005]
[1729898663068,0.22657412,65628.0,65627.0,0.005]
[1729898663286,0.22657412,65628.0,65625.0,7.62e-05]
[1729898663287,0.15050381,65628.0,65625.0,7.62e-05]
[1729898663520,0.88913269,65626.0,65625.0,7.62e-05]
[1729898663804,0.51018057,65626.0,65625.0,7.62e-05]
[1729898664456,0.66255857,65626.0,65625.0,7.62e-05]
[1729898664896,0.30288181,65626.0,65625.0,7.62e-05]
[1729898665112,0.51018057,65626.0,65625.0,7.62e-05]
[1729898666019,0.66255857,65626.0,65625.0,7.62e-05]
[1729898666248,0.152383,65624.0,65623.0,0.5249701]
[1729898666463,0.152383,65624.0,65610.0,0.025]
[1729898666464,0.152404,65615.0,65610.0,0.025]
[1729898666699,0.152404,65615.0,65602.0,0.22657412]
[1729898666700,0.152404,65615.0,65602.0,0.00163523]
[1729898666701,0.304822,65612.0,65602.0,0.00163523]
[1729898666907,0.35967676,65603.0,65602.0,0.00163523]
[1729898667129,0.51018057,65603.0,65600.0,1.08614]
[1729898667357,0.152419,65609.0,65602.0,0.22657412]
[1729898667595,0.25,65622.0,65600.0,1.08614]
[1729898667596,0.22657412,65625.0,65613.0,0.005]
[1729898667811,0.22657412,65625.0,65604.0,0.1919]
[1729898667812,0.22657412,65618.0,65617.0,0.005]
[1729898668029,0.22657412,65625.0,65611.0,0.005]
[1729898668254,0.22657412,65632.0,65619.0,0.005]
[1729898668476,0.22657412,65632.0,65611.0,0.304824]
[1729898668477,0.22657412,65625.0,65624.0,0.005]
[1729898668675,0.22657412,65639.0,65613.0,0.22657412]
[1729898668676,0.22657412,65639.0,65629.0,0.005]
[1729898668924,0.15050381,65638.0,65630.0,0.1969]
[1729898669141,0.22657412,65635.0,65631.0,0.005]
[1729898669349,0.35967676,65638.0,65632.0,0.005]
[1729898669569,0.35967676,65638.0,65630.0,0.1919]
[1729898669570,0.22657412,65637.0,65630.0,0.005]
[1729898669777,0.35967676,65631.0,65622.0,0.22657412]
[1729898669994,0.15050381,65636.0,65630.0,0.22657412]
[1729898670239,0.22657412,65637.0,65620.0,0.005]
[1729898670452,0.22657412,65637.0,65614.0,0.1919]
[1729898670453,0.35967676,65638.0,65630.0,0.005]
[1729898670660,0.35967676,65638.0,65624.0,0.005]
[1729898670661,0.22657412,65637.0,65624.0,0.005]
[1729898670877,0.22657412,65637.0,65621.0,0.22657412]
[1729898670878,0.35967676,65630.0,65621.0,0.22657412]
[1729898671102,0.35967676,65623.0,65612.0,0.005]
[1729898671314,0.35967676,65613.0,65599.0,0.02393309]
[1729898671802,0.35967676,65613.0,65603.0,0.000822]
[1729898672445,0.15050381,65612.0,65604.0,0.22657412]
[1729898672667,0.22657412,65610.0,65605.0,0.15550381]
[1729898672892,0.35967676,65620.0,65603.0,0.000822]
[1729898673113,0.35967676,65610.0,65603.0,0.000822]
[1729898673335,0.35967676,65610.0,65609.0,0.22657412]
[1729898673538,0.15050381,65610.0,65603.0,0.000822]
[1729898673986,0.35967676,65617.0,65603.0,0.000822]
[1729898673987,0.15050381,65609.0,65603.0,0.000822]
[1729898674196,0.22657412,65621.0,65608.0,0.22657412]
[1729898674414,0.22657412,65614.0,65610.0,0.005]
[1729898674633,0.58625088,65632.0,65611.0,0.23157412]
[1729898674843,0.58625088,65632.0,65604.0,0.1919]
[1729898674844,0.22657412,65624.0,65610.0,0.005]
[1729898675120,0.005,65638.0,65614.0,0.152404]
[1729898675121,0.15050381,65623.0,65614.0,0.152404]
[1729898675389,0.35967676,65633.0,65617.0,0.309796]
[1729898675593,0.22657412,65635.0,65619.0,0.005]
[1729898675594,0.35967676,65626.0,65619.0,0.005]
[1729898675814,0.15050381,65625.0,65621.0,0.22657412]
[1729898676025,0.15050381,65625.0,65622.0,0.22657412]
[1729898676241,0.35967676,65640.0,65617.0,0.304796]
[1729898676456,0.15050381,65639.0,65620.0,0.005]
[1729898676743,0.15050381,65639.0,65617.0,0.005]
[1729898676744,0.15050381,65639.0,65630.0,0.23157412]
[1729898676961,0.22657412,65650.0,65627.0,0.01]
[1729898676962,0.22657412,65650.0,65635.0,0.005]
[1729898677179,0.060954,65652.0,65642.0,0.005]
[1729898677409,0.060954,65652.0,65644.0,0.005]
[1729898677617,0.060954,65652.0,65647.0,0.005]
[1729898677826,0.060954,65652.0,65636.0,0.22657412]
[1729898677827,0.060954,65652.0,65642.0,0.005]
[1729898678036,0.060954,65652.0,65636.0,0.22657412]
[1729898678037,0.060954,65652.0,65646.0,0.005]
[1729898678250,0.060954,65652.0,65649.0,0.005]
[1729898678462,0.060954,65652.0,65638.0,0.22657412]
[1729898678463,0.15050381,65651.0,65638.0,0.22657412]
[1729898678718,0.15050381,65651.0,65645.0,0.22657412]
[1729898678719,0.35967676,65646.0,65645.0,0.22657412]
[1729898678999,0.22657412,65668.0,65643.0,0.005]
[1729898679000,0.35967676,65654.0,65643.0,0.005]
[1729898679310,0.22657412,65668.0,65633.0,0.22657412]
[1729898679311,0.35967676,65647.0,65633.0,0.22657412]
[1729898679512,0.35967676,65654.0,65644.0,0.22657412]
[1729898679716,0.15050381,65653.0,65639.0,0.005]
[1729898679929,0.23157412,65661.0,65637.0,0.152351]
[1729898679930,0.35967676,65661.0,65649.0,0.22657412]
[1729898680135,0.00630156,65680.0,65649.0,0.22657412]
[1729898680136,0.060946,65670.0,65665.0,0.152287]
[1729898680346,0.060946,65670.0,65669.0,0.157278]
[1729898680570,0.00130156,65680.0,65677.0,0.005]
[1729898680786,0.00130156,65680.0,65677.0,0.1872]
[1729898681033,0.00130156,65680.0,65679.0,0.167255]
[1729898681236,0.22657412,65702.0,65691.0,0.152227]
[1729898681478,0.22657412,65695.0,65691.0,0.005]
[1729898681715,0.22657412,65713.0,65695.0,0.005]
[1729898681957,0.25,65730.0,65695.0,0.005]
[1729898681958,0.22657412,65726.0,65699.0,0.58068312]
[1729898682146,0.22657412,65726.0,65721.0,0.005]
[1729898682356,0.22657412,65726.0,65715.0,0.35967676]
[1729898682357,0.07295328,65725.0,65724.0,0.005]
[1729898682567,0.13386128,65725.0,65724.0,0.088]
[1729898682795,0.13386128,65725.0,65724.0,0.240151]
[1729898683006,0.07295328,65725.0,65724.0,0.58755481]
[1729898683231,0.001724,65759.0,65738.0,0.005]
[1729898683455,0.001724,65759.0,65744.0,0.005]
[1729898683673,0.001724,65759.0,65746.0,0.1571]
[1729898684103,0.22657412,65775.0,65758.0,0.005]
[1729898684318,0.005,65793.0,65765.0,0.152056]
[1729898684528,0.255,65791.0,65765.0,0.157056]
[1729898684736,0.255,65791.0,65753.0,0.304167]
[1729898684737,0.005,65789.0,65751.0,0.2019]
[1729898684947,0.15050381,65765.0,65752.0,0.22657412]
[1729898685409,0.15050381,65765.0,65737.0,0.083]
[1729898685410,0.304104,65767.0,65754.0,0.22657412]
[1729898685411,0.152064,65762.0,65754.0,0.22657412]
[1729898685619,0.005,65767.0,65754.0,0.22657412]
[1729898685620,0.304113,65765.0,65754.0,0.22657412]
[1729898685827,0.304079,65773.0,65754.0,0.22657412]
[1729898685828,0.304079,65773.0,65761.0,0.22657412]
[1729898686039,0.005,65777.0,65761.0,0.22657412]
[1729898686040,1.25297537,65778.0,65761.0,0.22657412]
[1729898686239,0.36132076,65787.0,65761.0,0.22657412]
[1729898686240,0.001644,65787.0,65762.0,0.1969]
[1729898686444,0.001644,65787.0,65765.0,0.157056]
[1729898686665,0.001644,65787.0,65762.0,0.1969]
[1729898686926,0.001644,65787.0,65763.0,0.22657412]
[1729898687129,0.001644,65787.0,65774.0,0.152035]
[1729898687361,0.22345709,65786.0,65768.0,0.005]
[1729898687569,0.15050381,65786.0,65773.0,0.22657412]
[1729898687772,0.15050381,65785.0,65764.0,0.22657412]
[1729898688203,0.15050381,65785.0,65771.0,0.22657412]
[1729898688433,0.15050381,65785.0,65781.0,0.22657412]
[1729898688627,0.15050381,65785.0,65774.0,0.152034]
[1729898688833,0.15050381,65785.0,65771.0,0.22657412]
[1729898688834,0.152014,65784.0,65771.0,0.22657412]
[1729898689042,0.15050381,65783.0,65778.0,0.22657412]
[1729898689247,0.001644,65787.0,65771.0,0.22657412]
[1729898689481,0.001724,65791.0,65780.0,0.152021]
[1729898689682,0.001724,65791.0,65772.0,0.23350381]
[1729898689683,0.001724,65791.0,65782.0,0.152017]
[1729898689882,0.001724,65791.0,65788.0,0.152002]
[1729898690132,0.001724,65791.0,65781.0,0.005]
[1729898690334,0.001724,65791.0,65782.0,0.53560812]
[1729898690573,0.15050381,65790.0,65773.0,0.22657412]
[1729898690793,0.304006,65788.0,65773.0,0.22657412]
[1729898690930,0.304016,65786.0,65773.0,0.22657412]
[1729898691127,0.66539376,65791.0,65773.0,0.22657412]
[1729898691128,0.001724,65791.0,65780.0,0.22657412]
[1729898691329,0.001724,65791.0,65785.0,0.005]
[1729898691839,0.001724,65791.0,65779.0,0.005]
[1729898692080,0.001724,65791.0,65776.0,0.01]
[1729898692081,0.001724,65791.0,65789.0,0.22657412]
[1729898692245,0.001724,65791.0,65782.0,0.22657412]
[1729898692453,0.001724,65791.0,65790.0,0.39357212]
[1729898692591,0.001724,65791.0,65790.0,0.156998]
[1729898692813,0.001724,65791.0,65790.0,0.30750181]
[1729898693194,0.001642,65795.0,65794.0,0.166989]
[1729898693404,0.303793,65835.0,65812.0,0.151947]
[1729898693615,0.22657412,65818.0,65811.0,0.151948]
[1729898693821,0.22657412,65818.0,65809.0,0.303906]
[1729898693822,0.060839,65822.0,65805.0,0.151962]
[1729898694026,0.14975184,65821.0,65809.0,0.2093749]
[1729898694475,0.00424803,65809.0,65793.0,0.22657412]
[1729898694729,0.00424803,65795.0,65793.0,0.22657412]
[1729898694996,0.15626903,65781.0,65780.0,0.22657412]
[1729898695438,0.36392479,65781.0,65755.0,0.1969]
[1729898695674,0.00424803,65765.0,65755.0,0.1969]
[1729898695964,0.36392479,65765.0,65755.0,0.1969]
[1729898696157,0.002,65786.0,65755.0,0.1969]
[1729898696158,0.35967676,65777.0,65755.0,0.1969]
[1729898696363,0.15050381,65776.0,65755.0,0.1969]
[1729898696569,0.35967676,65777.0,65767.0,0.22657412]
[1729898696774,0.00424803,65782.0,65768.0,0.304099]
[1729898696982,0.35967676,65785.0,65767.0,0.005]
[1729898696983,0.35967676,65785.0,65772.0,0.15204]
[1729898697215,0.35967676,65791.0,65773.0,0.22657412]
[1729898697426,0.001646,65797.0,65770.0,0.30909]
[1729898697427,0.00424803,65789.0,65774.0,0.152033]
[1729898697627,0.00424803,65789.0,65775.0,0.22657412]
[1729898697880,0.36132276,65797.0,65775.0,0.37707793]
[1729898698109,0.22657412,65796.0,65779.0,0.152022]
[1729898698315,0.00424803,65794.0,65775.0,0.30262609]
[1729898698545,0.15050381,65793.0,65782.0,0.22657412]
[1729898698747,0.15050381,65793.0,65775.0,0.30187412]
[1729898698979,0.35967676,65784.0,65776.0,0.22657412]
[1729898699211,0.15050381,65783.0,65776.0,0.22657412]
[1729898699396,0.00424803,65788.0,65776.0,0.22657412]
[1729898699600,0.00424803,65788.0,65768.0,0.304095]
[1729898699601,0.152018,65782.0,65765.0,0.22657412]
[1729898699738,0.36392479,65784.0,65765.0,0.22657412]
[1729898699739,0.15050381,65781.0,65774.0,0.22657412]
[1729898699941,0.36392479,65784.0,65774.0,0.22657412]
[1729898700141,0.22657412,65793.0,65766.0,0.304105]
[1729898700142,0.151992,65793.0,65775.0,0.22657412]
[1729898700349,0.305615,65797.0,65784.0,0.00075197]
[1729898700350,0.001646,65797.0,65784.0,0.00075197]
[1729898700552,0.001646,65797.0,65796.0,0.151984]
[1729898700985,0.001646,65797.0,65796.0,0.31323978]
[1729898701188,0.00218651,65809.0,65808.0,0.151957]
[1729898701402,0.00218651,65809.0,65808.0,0.50951278]
[1729898701609,0.060839,65822.0,65821.0,0.151927]
[1729898701829,0.22657412,65839.0,65826.0,0.151915]
[1729898702093,0.22657412,65839.0,65826.0,0.18298405]
[1729898702382,0.00424803,65845.0,65826.0,0.18223208]
[1729898702591,0.22657412,65845.0,65826.0,0.42518786]
[1729898702793,0.22657412,65845.0,65831.0,0.151904]
[1729898703004,0.22657412,65845.0,65831.0,0.30240781]
[1729898703214,0.062557,65832.0,65831.0,0.25518509]
[1729898703419,0.001724,65832.0,65831.0,0.25518509]
[1729898703650,0.00164,65847.0,65837.0,0.151889]
[1729898703862,0.00164,65847.0,65842.0,0.151877]
[1729898704079,0.00164,65847.0,65838.0,0.00075197]
[1729898704283,0.006083,65846.0,65833.0,0.005]
[1729898704499,0.006083,65846.0,65832.0,0.1963]
[1729898704500,0.00424803,65845.0,65832.0,0.42287412]
[1729898704702,0.006083,65846.0,65839.0,0.22657412]
[1729898704914,0.006083,65846.0,65832.0,0.42287412]
[1729898705124,0.006083,65846.0,65840.0,0.22657412]
[1729898705241,0.006083,65846.0,65841.0,0.22657412]
[1729898705442,0.006083,65846.0,65832.0,0.1963]
[1729898705677,0.35967676,65840.0,65832.0,0.1963]
[1729898705881,0.00424803,65831.0,65816.0,0.348236]
[1729898706115,0.35967676,65834.0,65813.0,0.22657412]
[1729898706116,0.00424803,65817.0,65813.0,0.22657412]
[1729898706334,0.35967676,65814.0,65813.0,0.22657412]
[1729898706465,0.00424803,65816.0,65813.0,0.22657412]
[1729898706699,0.00424803,65816.0,65801.0,0.1963]
[1729898706700,0.00424803,65805.0,65802.0,0.22657412]
[1729898706918,0.01331756,65819.0,65802.0,0.22598321]
[1729898706919,0.00424803,65803.0,65802.0,0.22598321]
[1729898707133,0.00424803,65804.0,65793.0,0.37856312]
[1729898707276,0.00424803,65794.0,65787.0,0.22657412]
[1729898707491,0.35967676,65797.0,65787.0,0.22657412]
[1729898707492,0.0133144,65796.0,65787.0,0.22657412]
[1729898707934,0.0133144,65796.0,65788.0,0.15050381]
[1729898708153,0.00424803,65795.0,65786.0,0.1963]
[1729898708377,0.00424803,65784.0,65772.0,0.22657412]
[1729898708623,0.18512677,65794.0,65772.0,0.22657412]
[1729898708624,0.51596279,65773.0,65772.0,0.22657412]
[1729898708839,0.51596279,65773.0,65765.0,0.22657412]
[1729898708840,0.00424803,65766.0,65765.0,0.22657412]
[1729898709051,0.03892232,65766.0,65765.0,0.22657412]
[1729898709271,0.03892232,65766.0,65754.0,0.22657412]
[1729898709272,0.00424803,65764.0,65754.0,0.22657412]
[1729898709507,0.00424803,65764.0,65735.0,0.22657412]
[1729898709508,0.37329932,65764.0,65735.0,0.22657412]
[1729898709722,0.00424803,65748.0,65735.0,0.22657412]
[1729898709982,0.38197776,65746.0,65735.0,0.22657412]
[1729898710194,0.43041229,65746.0,65735.0,0.22657412]
[1729898710414,0.00424803,65746.0,65745.0,0.22657412]
[1729898710629,0.04865312,65746.0,65736.0,0.03082741]
[1729898710854,0.04865312,65746.0,65703.0,0.22657412]
[1729898710855,0.00424803,65742.0,65718.0,0.005]
[1729898711073,0.00424803,65736.0,65735.0,0.22657412]
[1729898711283,0.00424803,65736.0,65727.0,0.22657412]
[1729898711284,0.00424803,65728.0,65727.0,0.22657412]
[1729898711512,0.00424803,65728.0,65713.0,0.30827412]
[1729898711513,0.00424803,65721.0,65716.0,0.060865]
[1729898711733,0.00424803,65721.0,65713.0,0.22657412]
[1729898711734,0.00424803,65716.0,65713.0,0.22657412]
[1729898711953,0.03490677,65721.0,65713.0,0.22657412]
[1729898711954,0.01341733,65715.0,65713.0,0.22657412]
[1729898712177,0.02238653,65726.0,65713.0,0.22657412]
[1729898712414,0.53081512,65738.0,65713.0,0.22657412]
[1729898712415,0.00839494,65720.0,65718.0,0.005]
[1729898712616,0.22657412,65738.0,65724.0,0.152149]
[1729898712816,0.22657412,65738.0,65728.0,0.152141]
[1729898713051,0.22657412,65745.0,65729.0,0.15050381]
[1729898713312,0.22657412,65730.0,65726.0,0.1963]
[1729898713490,0.304219,65743.0,65727.0,0.22657412]
[1729898713806,0.304228,65740.0,65717.0,0.22657412]
[1729898714015,0.22657412,65745.0,65710.0,0.23157412]
[1729898714016,0.304275,65730.0,65710.0,0.22657412]
[1729898714223,0.25,65727.0,65717.0,0.22657412]
[1729898714428,0.152181,65711.0,65710.0,0.22657412]
[1729898714648,0.304284,65728.0,65718.0,0.22657412]
[1729898714886,0.304293,65726.0,65697.0,0.005861]
[1729898715077,0.005,65729.0,65714.0,0.22657412]
[1729898715271,0.15050381,65725.0,65714.0,0.22657412]
[1729898715498,0.15050381,65725.0,65697.0,0.000861]
[1729898715694,0.304243,65737.0,65715.0,0.22657412]
[1729898715902,0.53278312,65745.0,65721.0,0.152158]
[1729898715903,0.37867712,65745.0,65721.0,0.152158]
[1729898716103,0.37867712,65745.0,65716.0,0.15050381]
[1729898716104,0.22657412,65736.0,65722.0,0.0152158]
[1729898716313,0.152122,65737.0,65717.0,0.22657412]
[1729898716538,0.22657412,65745.0,65696.0,0.29244312]
[1729898716539,0.22657412,65729.0,65696.0,0.29244312]
[1729898716742,0.152144,65728.0,65717.0,0.22657412]
[1729898716999,0.152113,65741.0,65724.0,0.22657412]
[1729898717188,0.22657412,65735.0,65717.0,0.22657412]
[1729898717484,0.15050381,65740.0,65717.0,0.22657412]
[1729898717485,0.22657412,65737.0,65717.0,0.22657412]
[1729898717707,0.15050381,65735.0,65724.0,0.22657412]
[1729898717953,0.22657412,65731.0,65717.0,0.22657412]
[1729898718188,0.15050381,65731.0,65717.0,0.22657412]
[1729898718400,0.152144,65727.0,65717.0,0.22657412]
[1729898718677,0.30265081,65726.0,65718.0,0.22657412]
[1729898718870,0.02231808,65734.0,65718.0,0.22657412]
[1729898719095,0.15050381,65737.0,65724.0,0.05]
[1729898719096,0.02231808,65736.0,65724.0,0.05]
[1729898719331,0.22657412,65737.0,65725.0,0.152148]
[1729898719544,0.37707793,65737.0,65724.0,0.05]
[1729898719745,0.15050381,65736.0,65724.0,0.05]
[1729898719988,0.15050381,65736.0,65725.0,0.22657412]
[1729898720170,0.02230659,65743.0,65733.0,0.22657412]
[1729898720377,0.15050381,65742.0,65725.0,0.22657412]
[1729898720583,0.15050381,65742.0,65724.0,0.05]
[1729898720584,0.152117,65739.0,65726.0,0.22657412]
[1729898720812,0.15050381,65742.0,65724.0,0.05]
[1729898720813,0.15050381,65738.0,65727.0,0.22657412]
[1729898721001,0.152121,65737.0,65727.0,0.25423153]
[1729898721126,0.15050381,65736.0,65727.0,0.25423153]
[1729898721372,0.15050381,65736.0,65727.0,0.22657412]
[1729898721597,0.01,65749.0,65727.0,0.22657412]
[1729898721598,0.01730659,65746.0,65735.0,0.22657412]
[1729898721810,0.01730659,65746.0,65727.0,0.37707793]
[1729898721811,0.22657412,65751.0,65736.0,0.15050381]
[1729898722075,0.22657412,65742.0,65736.0,0.15550381]
[1729898722290,0.22657412,65751.0,65736.0,0.15050381]
[1729898722522,0.22657412,65751.0,65737.0,0.06963369]
[1729898722734,0.22657412,65744.0,65719.0,0.005]
[1729898722947,0.15050381,65750.0,65710.0,0.22657412]
[1729898722948,0.15050381,65743.0,65732.0,0.22657412]
[1729898723172,0.152149,65725.0,65710.0,0.22657412]
[1729898723394,0.32767322,65740.0,65710.0,0.22657412]
[1729898723395,0.02139261,65739.0,65710.0,0.22657412]
[1729898723617,0.17189642,65738.0,65727.0,0.22657412]
[1729898723835,0.02139261,65746.0,65728.0,0.152142]
[1729898724043,0.23609507,65751.0,65725.0,0.1808]
[1729898724044,0.22657412,65742.0,65725.0,0.1808]
[1729898724251,0.16386974,65741.0,65727.0,0.22657412]
[1729898724496,0.16386974,65741.0,65725.0,0.1808]
[1729898724497,0.15213,65734.0,65725.0,0.1808]
[1729898724730,0.01336593,65733.0,65726.0,0.53086512]
[1729898724941,0.255,65752.0,65725.0,0.1808]
[1729898725195,0.03476,65751.0,65725.0,0.1808]
[1729898725411,0.02139077,65750.0,65727.0,0.0757]
[1729898725623,0.005,65768.0,65727.0,0.0757]
[1729898725624,0.03476,65749.0,65733.0,0.304261]
[1729898725839,0.01336923,65748.0,65733.0,0.005]
[1729898726060,0.01336923,65747.0,65735.0,0.304251]
[1729898726274,0.03476,65755.0,65740.0,0.304227]
[1729898726488,0.03476,65755.0,65733.0,0.005]
[1729898726489,0.152086,65753.0,65731.0,0.304268]
[1729898726706,0.01336598,65752.0,65742.0,0.22657412]
[1729898726936,0.00086721,65753.0,65742.0,0.15050381]
[1729898726937,0.01336598,65751.0,65742.0,0.15050381]
[1729898727167,0.00086721,65753.0,65742.0,0.15050381]
[1729898727168,0.00086721,65753.0,65743.0,0.22657412]
[1729898727397,0.00086721,65753.0,65749.0,0.152091]
[1729898727617,0.00086721,65753.0,65744.0,0.37707793]
[1729898727618,0.22657412,65752.0,65748.0,0.1808]
[1729898727874,0.00086721,65753.0,65748.0,0.21373039]
[1729898728078,0.00086721,65753.0,65750.0,0.304182]
[1729898728293,0.00086721,65753.0,65752.0,0.152086]
[1729898728502,0.00086721,65753.0,65752.0,0.30758981]
[1729898728759,0.00951878,65781.0,65752.0,0.30758981]
[1729898728760,0.22657412,65764.0,65752.0,0.15050381]
[1729898728997,0.53061112,65782.0,65753.0,0.19192723]
[1729898729199,0.01337857,65770.0,65755.0,0.304157]
[1729898729415,0.01337857,65770.0,65756.0,0.15550381]
[1729898729628,0.01337857,65779.0,65762.0,0.0757]
[1729898729842,0.02140572,65781.0,65753.0,0.03642342]
[1729898729843,0.37861312,65773.0,65754.0,0.15208]
[1729898730063,0.01337857,65772.0,65764.0,0.22657412]
[1729898730303,0.01337857,65771.0,65757.0,0.22657412]
[1729898730514,0.22657412,65782.0,65757.0,0.22657412]
[1729898730515,0.01337857,65780.0,65764.0,0.22657412]
[1729898730729,0.01337857,65780.0,65765.0,0.15050381]
[1729898730969,0.02140572,65781.0,65765.0,0.15050381]
[1729898730970,0.01338554,65779.0,65765.0,0.15050381]
[1729898731201,0.01338554,65778.0,65766.0,0.2725366]
[1729898731460,0.01338618,65789.0,65767.0,0.15050381]
[1729898731705,0.01339051,65788.0,65773.0,0.304075]
[1729898731949,0.3647268,65790.0,65773.0,0.30254081]
[1729898731950,0.03481533,65787.0,65773.0,0.30254081]
[1729898732163,0.03481533,65786.0,65774.0,0.3737465]
[1729898732386,0.03481533,65785.0,65784.0,0.152012]
[1729898732633,0.22657412,65800.0,65784.0,0.152012]
[1729898732634,0.00951351,65799.0,65784.0,0.14677317]
[1729898732918,0.22657412,65798.0,65785.0,0.005]
[1729898733136,0.22657412,65808.0,65788.0,0.005]
[1729898733358,0.22657412,65807.0,65802.0,0.1808]
[1729898733595,0.00951025,65822.0,65803.0,0.16858381]
[1729898733831,0.02239838,65826.0,65817.0,0.151936]
[1729898734049,0.02239838,65826.0,65807.0,0.005]
[1729898734050,0.22657412,65831.0,65826.0,0.151915]
[1729898734303,0.001722,65832.0,65831.0,0.151904]
[1729898734526,0.22821412,65847.0,65836.0,0.151892]
[1729898734736,0.22821412,65847.0,65834.0,0.30379]
[1729898734737,0.22821412,65847.0,65827.0,0.313826]
[1729898734959,0.00164,65847.0,65828.0,0.15050381]
[1729898735418,0.3647268,65844.0,65829.0,0.22657412]
[1729898735635,0.3647268,65844.0,65827.0,0.303826]
[1729898735636,0.3647268,65844.0,65830.0,0.22657412]
[1729898735854,0.3647268,65844.0,65831.0,0.15050381]
[1729898736091,0.3647268,65844.0,65834.0,0.151895]
[1729898736307,0.00164,65847.0,65832.0,0.16555419]
[1729898736564,0.00164,65847.0,65836.0,0.151892]
[1729898736779,0.00164,65847.0,65839.0,0.151884]
[1729898736994,0.00164,65847.0,65840.0,0.15050381]
[1729898737213,0.00164,65847.0,65846.0,0.151869]
[1729898738086,0.00164,65847.0,65846.0,0.30237281]
[1729898738300,0.001726,65859.0,65853.0,0.303706]
[1729898738527,0.001726,65859.0,65854.0,0.15050381]
[1729898738755,0.3647268,65878.0,65854.0,0.15050381]
[1729898738756,0.3664488,65884.0,65858.0,0.22657412]
[1729898738980,0.3664488,65884.0,65854.0,0.005]
[1729898738981,0.22657412,65876.0,65870.0,0.151812]
[1729898739193,0.001722,65884.0,65866.0,0.15050381]
[1729898739409,0.001722,65884.0,65868.0,0.151818]
[1729898739635,0.001722,65884.0,65879.0,0.151793]
[1729898739865,0.001722,65884.0,65875.0,0.151801]
[1729898740085,0.001722,65884.0,65876.0,0.19604581]
[1729898740312,0.001722,65884.0,65876.0,0.045542]
[1729898740587,0.001722,65884.0,65878.0,0.151794]
[1729898740799,0.001722,65884.0,65877.0,0.303596]
[1729898740800,0.001722,65884.0,65879.0,0.30229681]
[1729898741015,0.001722,65884.0,65879.0,0.30729681]
[1729898741256,0.001722,65884.0,65883.0,0.151784]
[1729898741480,0.0192273,65893.0,65884.0,0.1971]
[1729898741701,0.0192273,65893.0,65892.0,0.151763]
[1729898741919,0.0192273,65893.0,65892.0,0.30226681]
[1729898742136,0.0192273,65893.0,65892.0,0.151763]
[1729898742363,0.00172,65905.0,65892.0,0.21869252]
[1729898742635,0.00172,65905.0,65893.0,0.15050381]
[1729898742880,0.00172,65905.0,65892.0,0.06818871]
[1729898742881,0.00172,65905.0,65904.0,0.151735]
[1729898743112,0.00164,65910.0,65904.0,0.151735]
[1729898743113,0.00164,65910.0,65909.0,0.151724]
[1729898743326,0.23072381,65931.0,65909.0,0.15050381]
[1729898743557,0.00414969,65926.0,65912.0,0.151717]
[1729898743783,0.00414969,65925.0,65912.0,0.30222081]
[1729898744247,0.00414969,65925.0,65902.0,0.23657412]
[1729898744248,0.00414969,65912.0,65911.0,0.060669]
[1729898744716,0.01,65928.0,65904.0,0.22657412]
[1729898744717,0.00414969,65910.0,65904.0,0.22657412]
[1729898744934,0.00414969,65921.0,65907.0,0.303453]
[1729898745147,0.303334,65934.0,65912.0,0.151717]
[1729898745148,0.00414969,65920.0,65912.0,0.151717]
[1729898745370,0.00414969,65921.0,65912.0,0.29801945]
[1729898745577,0.00414969,65920.0,65912.0,0.29801945]
[1729898745819,0.00086969,65921.0,65912.0,0.14630245]
[1729898746277,0.00086969,65933.0,65914.0,0.1971]
[1729898746510,0.0001,65954.0,65924.0,0.22657412]
[1729898746746,0.0001,65954.0,65935.0,0.151664]
[1729898746966,0.00086969,65943.0,65925.0,0.156687]
[1729898747195,0.0001,65954.0,65936.0,0.22657412]
[1729898747410,0.0001,65954.0,65938.0,0.303315]
[1729898747624,0.00086969,65949.0,65942.0,0.151647]
[1729898747851,0.0001,65954.0,65943.0,0.15050381]
[1729898748192,0.00086969,65949.0,65944.0,0.15050381]
[1729898748325,0.0001,65954.0,65945.0,0.37821512]
[1729898748545,0.0175053,65960.0,65951.0,0.151625]
[1729898748546,0.0143253,65960.0,65951.0,0.151625]
[1729898748771,0.0143253,65960.0,65952.0,0.15050381]
[1729898749004,0.0143253,65960.0,65959.0,0.151609]
[1729898749241,0.0143253,65960.0,65959.0,0.30211281]
[1729898749899,0.0143253,65960.0,65959.0,0.15050381]
[1729898750127,0.0143253,65960.0,65959.0,0.34135409]
[1729898750831,0.0143253,65960.0,65959.0,0.15050381]
[1729898751282,0.0143253,65960.0,65959.0,0.30211281]
[1729898751508,0.00172,65978.0,65959.0,0.15050381]
[1729898751509,0.00258969,65978.0,65959.0,0.15050381]
[1729898751719,0.00258969,65978.0,65955.0,0.0803]
[1729898751720,0.00258969,65978.0,65963.0,0.151598]
[1729898751972,0.00258969,65978.0,65964.0,0.20676712]
[1729898752188,0.00086969,65977.0,65970.0,0.22657412]
[1729898752391,0.00086969,65977.0,65964.0,0.20676712]
[1729898752605,0.00086969,65977.0,65963.0,0.1971]
[1729898752606,0.00086969,65971.0,65963.0,0.1971]
[1729898752825,0.00086969,65971.0,65964.0,0.015]
[1729898753038,0.00086969,65969.0,65964.0,0.015]
[1729898753520,0.00086969,65967.0,65964.0,0.015]
[1729898753741,0.00086969,65969.0,65966.0,0.22657412]
[1729898753964,0.00086969,65969.0,65967.0,0.02415741]
[1729898754420,0.00086969,65969.0,65959.0,0.22657412]
[1729898754421,0.3647268,65975.0,65964.0,0.151595]
[1729898754643,0.3647268,65975.0,65966.0,0.22657412]
[1729898754854,0.3647268,65969.0,65964.0,0.15050381]
[1729898755069,0.3645268,65969.0,65966.0,0.22657412]
[1729898755292,0.3645268,65969.0,65960.0,0.454821]
[1729898755504,0.3645268,65969.0,65961.0,0.07313951]
[1729898755945,0.00086969,65973.0,65964.0,0.151597]
[1729898756161,0.00086969,65973.0,65962.0,0.15050381]
[1729898756162,0.3647268,65970.0,65957.0,0.05]
[1729898756379,0.00086969,65959.0,65957.0,0.05]
[1729898756593,0.3647268,65963.0,65957.0,0.05]
[1729898756594,0.3647268,65963.0,65958.0,0.22657412]
[1729898756802,0.00086969,65959.0,65957.0,0.05]
[1729898757236,0.36559649,65963.0,65957.0,0.05]
[1729898757445,0.3647268,65963.0,65957.0,0.05]
[1729898757658,0.3647268,65963.0,65961.0,0.151604]